[Event "95th Caplin Hastings Congress"]
[Site "Hastings"]
[Date "2019.12.30"]
[Round "3.31"]
[White "Chapman, Matt"]
[Black "Boino, Claudio"]
[Result "1-0"]
[ECO "D00"]
[WhiteElo "1937"]
[BlackElo "2146"]
[Annotator "NA"]
[PlyCount "95"]
[EventDate "2019.12.28"]
[EventType "swiss"]
[EventCountry "ENG"]
[SourceTitle "playchess.com"]
[Source "ChessBase"]
[SourceQuality "1"]
[TimeControl "40/6600+30:3000+30"]

1. d4 {[%emt 0:09:34]} d5 {[%emt 0:09:34]} 2. Bf4 {[%emt 0:00:12]} c5 {[%emt 0:00:08]} 3. e3 {[%emt 0:00:13]} Nc6 {[%emt 0:00:09]} 4. c3 {[%emt 0:00:44]} Nf6 {[%emt 0:00:27]} 5. Nd2 {[%emt 0:00:17]} Bf5 {[%emt 0:00:10]} 6. Ngf3 {[%emt 0:00:58]} e6 {[%emt 0:00:08]} 7. Qb3 {[%emt 0:03:30]} Qc8 {[%emt 0:00:08]} 8. c4 {[%emt 0:09:29]} a6 {[%emt 0:14:51]} 9. Rc1 {[%emt 0:13:49]} cxd4 {[%emt 0:06:22]} 10. Nxd4 {[%emt 0:12:53]} Nxd4 {[%emt 0:02:50]} 11. exd4 {[%emt 0:00:17]} Nh5 {[%emt 0:07:00]} 12. Be3 {[%emt 0:09:06]} Bd6 {[%emt 0:12:47]} 13. g3 {[%emt 0:01:19]} O-O {[%emt 0:13:38]} 14. Bg2 {[%emt 0:00:46]} b5 {[%emt 0:08:33]} 15. c5 {[%emt 0:00:54]} Bc7 {[%emt 0:01:34]} 16. O-O {[%emt 0:01:22]} Nf6 {[%emt 0:02:11]} 17. Nb1 {[%emt 0:15:46]} Be4 {[%emt 0:06:03]} 18. Nc3 {[%emt 0:02:43]} Bxg2 {[%emt 0:03:13]} 19. Kxg2 {[%emt 0:00:05]} Qb7 {[%emt 0:06:02]} 20. Rfe1 {[%emt 0:08:18]} Qc6 {[%emt 0:03:29]} 21. f3 {[%emt 0:02:16]} h6 {[%emt 0:04:07]} 22. Bf2 {[%emt 0:03:06]} Rfe8 {[%emt 0:00:21]} 23. Rcd1 {[%emt 0:00:38]} Rad8 {[%emt 0:01:35]} 24. Rd3 {[%emt 0:03:10]} g5 {[%emt 0:01:39]} 25. Red1 {[%emt 0:01:40]} Kg7 {[%emt 0:01:39]} 26. a3 {[%emt 0:02:47]} h5 {[%emt 0:02:03]} 27. Be3 {[%emt 0:02:47]} Nh7 {[%emt 0:02:10]} 28. Qc2 {[%emt 0:01:34]} f5 {[%emt 0:01:44]} 29. Qc1 {[%emt 0:02:24]} Kg6 {[%emt 0:00:36]} 30. Ne2 {[%emt 0:01:28]} Rg8 {[%emt 0:04:54]} 31. Rg1 {[%emt 0:00:58]} Kf7 {[%emt 0:00:42]} 32. Kf2 {[%emt 0:02:23]} Bb8 {[%emt 0:00:19]} 33. Rdd1 {[%emt 0:00:42]} Rg6 {[%emt 0:00:40]} 34. h4 {[%emt 0:01:28]} Rdg8 {[%emt 0:02:17]} 35. hxg5 {[%emt 0:03:05]} Nxg5 {[%emt 0:00:15]} 36. Rh1 {[%emt 0:00:21]} e5 {[%emt 0:00:42]} 37. dxe5 {[%emt 0:00:59]} Ne6 {[%emt 0:01:14]} 38. Rxh5 {[%emt 0:01:41]} Ng7 {[%emt 0:00:31]} 39. Rhh1 {[%emt 0:00:54]} Bxe5 {[%emt 0:00:10]} 40. Bf4 {[%emt 0:01:30]} Qf6 {[%emt 0:01:19]} 41. Bxe5 {[%emt 0:05:48]} Qxe5 {[%emt 0:00:01]} 42. Nf4 {[%emt 0:00:18]} Rxg3 {[%emt 0:03:20]} 43. Rxd5 {[%emt 0:08:55]} Rxf3+ {[%emt 0:17:11]} 44. Kxf3 {[%emt 0:01:05]} Qe4+ {[%emt 0:00:09]} 45. Kf2 {[%emt 0:00:23]} Ne6 {[%emt 0:03:05]} 46. Re1 {[%emt 0:07:32]} Rg2+ {[%emt 0:02:22]} 47. Nxg2 {[%emt 0:00:11]} Qxd5 {[%emt 0:00:05]} 48. Qe3 {[%emt 0:02:33]} 1-0

[Event "95th Caplin Hastings Congress"]
[Site "Hastings"]
[Date "2019.12.30"]
[Round "3.32"]
[White "Thompson, Ian D"]
[Black "Elwin, Adrian G"]
[Result "1-0"]
[ECO "A37"]
[WhiteElo "2141"]
[BlackElo "1986"]
[Annotator "NA"]
[PlyCount "83"]
[EventDate "2019.12.28"]
[EventType "swiss"]
[EventCountry "ENG"]
[SourceTitle "playchess.com"]
[Source "ChessBase"]
[SourceQuality "1"]
[TimeControl "40/6600+30:3000+30"]

1. c4 {[%emt 0:09:34]} c5 {[%emt 0:09:48]} 2. Nc3 {[%emt 0:00:23]} Nc6 {[%emt 0:01:01]} 3. g3 {[%emt 0:00:23]} g6 {[%emt 0:00:37]} 4. Bg2 {[%emt 0:00:11]} Bg7 {[%emt 0:00:06]} 5. Nf3 {[%emt 0:00:32]} e6 {[%emt 0:01:04]} 6. d3 {[%emt 0:09:01]} Nge7 {[%emt 0:05:03]} 7. O-O {[%emt 0:00:50]} O-O {[%emt 0:00:43]} 8. Bf4 {[%emt 0:02:58]} d6 {[%emt 0:01:29]} 9. Qc1 {[%emt 0:07:54]} Nf5 {[%emt 0:15:52]} 10. Ne1 {[%emt 0:04:00]} e5 {[%emt 0:08:46]} 11. Bd2 {[%emt 0:01:06]} Bd7 {[%emt 0:04:20]} 12. Rb1 {[%emt 0:01:49]} Qc8 {[%emt 0:04:28]} 13. b3 {[%emt 0:10:09]} Nfd4 {[%emt 0:09:35]} 14. e3 {[%emt 0:04:45]} Ne6 {[%emt 0:00:55]} 15. a3 {[%emt 0:01:15]} f5 {[%emt 0:08:50]} 16. f4 {[%emt 0:14:24]} exf4 {[%emt 0:11:17]} 17. gxf4 {[%emt 0:00:16]} Ne7 {[%emt 0:02:36]} 18. b4 {[%emt 0:02:25]} cxb4 {[%emt 0:03:59]} 19. axb4 {[%emt 0:00:06]} g5 {[%emt 0:01:48]} 20. fxg5 {[%emt 0:09:13]} Ng6 {[%emt 0:02:03]} 21. Nf3 {[%emt 0:05:16]} f4 {[%emt 0:01:21]} 22. Nd5 {[%emt 0:02:34]} fxe3 {[%emt 0:14:25]} 23. Bxe3 {[%emt 0:00:17]} Nc7 {[%emt 0:00:50]} 24. Nd4 {[%emt 0:04:42]} Nxd5 {[%emt 0:02:02]} 25. Bxd5+ {[%emt 0:00:10]} Kh8 {[%emt 0:00:16]} 26. Qd2 {[%emt 0:06:14]} Bh3 {[%emt 0:01:55]} 27. Rxf8+ {[%emt 0:01:24]} Qxf8 {[%emt 0:00:31]} 28. Bg2 {[%emt 0:05:05]} Bxg2 {[%emt 0:02:59]} 29. Qxg2 {[%emt 0:00:27]} Re8 {[%emt 0:01:52]} 30. Rf1 {[%emt 0:01:06]} Qg8 {[%emt 0:03:26]} 31. Nf5 {[%emt 0:03:39]} Nh4 {[%emt 0:00:16]} 32. Nxh4 {[%emt 0:03:07]} Rxe3 {[%emt 0:00:02]} 33. Nf5 {[%emt 0:00:40]} Re5 {[%emt 0:00:24]} 34. Nxd6 {[%emt 0:05:51]} Re7 {[%emt 0:00:21]} 35. Nf5 {[%emt 0:01:21]} Rd7 {[%emt 0:00:29]} 36. Rf3 {[%emt 0:01:08]} Bc3 {[%emt 0:01:07]} 37. h4 {[%emt 0:01:01]} Qe6 {[%emt 0:00:40]} 38. b5 {[%emt 0:01:11]} Rf7 {[%emt 0:00:30]} 39. Qf2 {[%emt 0:01:40]} Qd7 {[%emt 0:01:07]} 40. Kg2 {[%emt 0:00:36]} Bg7 {[%emt 0:00:32]} 41. Nxg7 {[%emt 0:03:20]} Qg4+ {[%emt 0:00:26]} 42. Qg3 {[%emt 0:00:24]} 1-0

[Event "95th Caplin Hastings Congress"]
[Site "Hastings"]
[Date "2019.12.30"]
[Round "3.33"]
[White "White, Stuart A"]
[Black "Fryer, David W"]
[Result "0-1"]
[ECO "E91"]
[WhiteElo "2106"]
[BlackElo "1913"]
[Annotator "NA"]
[PlyCount "114"]
[EventDate "2019.12.28"]
[EventType "swiss"]
[EventCountry "ENG"]
[SourceTitle "playchess.com"]
[Source "ChessBase"]
[SourceQuality "1"]
[TimeControl "40/6600+30:3000+30"]

1. d4 {[%emt 0:09:31]} d6 {[%emt 0:09:42]} 2. Nf3 {[%emt 0:00:06]} Nf6 {[%emt 0:00:35]} 3. c4 {[%emt 0:00:29]} g6 {[%emt 0:00:12]} 4. Nc3 {[%emt 0:00:16]} Bg7 {[%emt 0:00:20]} 5. e4 {[%emt 0:00:04]} O-O {[%emt 0:00:14]} 6. Be2 {[%emt 0:00:32]} Nc6 {[%emt 0:01:02]} 7. d5 {[%emt 0:00:06]} Nb8 {[%emt 0:01:16]} 8. O-O {[%emt 0:00:08]} e5 {[%emt 0:01:02]} 9. Ne1 {[%emt 0:02:52]} Nbd7 {[%emt 0:00:44]} 10. Nd3 {[%emt 0:02:44]} h6 {[%emt 0:03:47]} 11. Be3 {[%emt 0:01:46]} a6 {[%emt 0:03:18]} 12. Rc1 {[%emt 0:09:33]} Kh7 {[%emt 0:01:00]} 13. b4 {[%emt 0:02:14]} Re8 {[%emt 0:01:14]} 14. c5 {[%emt 0:02:05]} Nf8 {[%emt 0:01:23]} 15. Nb2 {[%emt 0:06:38]} Ng8 {[%emt 0:08:12]} 16. Nc4 {[%emt 0:04:39]} f5 {[%emt 0:00:58]} 17. cxd6 {[%emt 0:06:04]} cxd6 {[%emt 0:00:10]} 18. Nb6 {[%emt 0:01:09]} f4 {[%emt 0:01:36]} 19. Nxa8 {[%emt 0:01:55]} fxe3 {[%emt 0:00:18]} 20. Na4 {[%emt 0:03:42]} b5 {[%emt 0:03:05]} 21. N4b6 {[%emt 0:05:43]} Bb7 {[%emt 0:03:27]} 22. Nc7 {[%emt 0:01:11]} Re7 {[%emt 0:00:52]} 23. Qc2 {[%emt 0:00:17]} exf2+ {[%emt 0:02:23]} 24. Rxf2 {[%emt 0:01:15]} Qb8 {[%emt 0:00:37]} 25. a4 {[%emt 0:02:30]} Qa7 {[%emt 0:05:28]} 26. a5 {[%emt 0:01:04]} Qb8 {[%emt 0:00:35]} 27. Nxb5 {[%emt 0:15:22]} axb5 {[%emt 0:00:57]} 28. Bxb5 {[%emt 0:01:12]} h5 {[%emt 0:01:45]} 29. Qd3 {[%emt 0:02:23]} Nf6 {[%emt 0:04:10]} 30. Bc6 {[%emt 0:06:08]} Ng4 {[%emt 0:09:24]} 31. Rf3 {[%emt 0:00:27]} Rc7 {[%emt 0:02:48]} 32. b5 {[%emt 0:05:11]} Qa7 {[%emt 0:03:11]} 33. Qa3 {[%emt 0:01:11]} Nd7 {[%emt 0:01:39]} 34. Bxd7 {[%emt 0:01:05]} Rxd7 {[%emt 0:01:50]} 35. Rcf1 {[%emt 0:01:41]} Bxd5 {[%emt 0:01:18]} 36. exd5 {[%emt 0:01:25]} e4 {[%emt 0:00:14]} 37. h3 {[%emt 0:19:48]} exf3 {[%emt 0:05:01]} 38. Rxf3 {[%emt 0:01:30]} Ne5 {[%emt 0:01:06]} 39. Rf4 {[%emt 0:02:33]} Rf7 {[%emt 0:08:13]} 40. Rxf7 {[%emt 0:00:42]} Nxf7 {[%emt 0:01:38]} 41. Kh1 {[%emt 0:07:10]} Qe7 {[%emt 0:02:51]} 42. Qc1 {[%emt 0:04:22]} Ng5 {[%emt 0:01:44]} 43. Nc4 {[%emt 0:05:29]} Ne4 {[%emt 0:09:00]} 44. Qe3 {[%emt 0:04:05]} Bh6 {[%emt 0:03:37]} 45. Qf3 {[%emt 0:00:36]} h4 {[%emt 0:04:55]} 46. g4 {[%emt 0:04:57]} Ng3+ {[%emt 0:12:03]} 47. Kh2 {[%emt 0:01:43]} Qe1 {[%emt 0:04:48]} 48. g5 {[%emt 0:04:43]} Bg7 {[%emt 0:04:54]} 49. b6 {[%emt 0:01:41]} Bd4 {[%emt 0:08:02]} 50. Qf7+ {[%emt 0:00:18]} Bg7 {[%emt 0:00:24]} 51. Qf3 {[%emt 0:00:02]} Qb1 {[%emt 0:04:47]} 52. Nxd6 {[%emt 0:05:11]} Qc2+ {[%emt 0:02:45]} 53. Qg2 {[%emt 0:00:48]} Nf1+ {[%emt 0:00:28]} 54. Kh1 {[%emt 0:00:55]} Qd1 {[%emt 0:02:29]} 55. Nf7 {[%emt 0:02:40]} Ne3+ {[%emt 0:01:21]} 56. Qg1 {[%emt 0:00:04]} Qf3+ {[%emt 0:00:18]} 57. Kh2 {[%emt 0:00:02]} Nf1+ {[%emt 0:00:53]} 0-1

[Event "95th Caplin Hastings Congress"]
[Site "Hastings"]
[Date "2019.12.30"]
[Round "3.34"]
[White "Willson, Ollie"]
[Black "Ruane, Brendan J"]
[Result "1-0"]
[ECO "B00"]
[WhiteElo "2082"]
[BlackElo "1882"]
[Annotator "NA"]
[PlyCount "143"]
[EventDate "2019.12.28"]
[EventType "swiss"]
[EventCountry "ENG"]
[SourceTitle "playchess.com"]
[Source "ChessBase"]
[SourceQuality "1"]
[TimeControl "40/6600+30:3000+30"]

1. d4 {[%emt 0:09:36]} b6 {[%emt 0:09:38]} 2. e4 {[%emt 0:00:27]} Bb7 {[%emt 0:00:07]} 3. Bd3 {[%emt 0:00:12]} g6 {[%emt 0:00:16]} 4. Nf3 {[%emt 0:00:46]} Bg7 {[%emt 0:00:08]} 5. c4 {[%emt 0:00:41]} d6 {[%emt 0:00:15]} 6. Nc3 {[%emt 0:00:09]} Nd7 {[%emt 0:01:46]} 7. O-O {[%emt 0:00:44]} c5 {[%emt 0:01:07]} 8. d5 {[%emt 0:07:20]} Ngf6 {[%emt 0:00:15]} 9. h3 {[%emt 0:08:11]} O-O {[%emt 0:00:08]} 10. Bf4 {[%emt 0:02:40]} a6 {[%emt 0:00:40]} 11. Qd2 {[%emt 0:01:29]} Qc7 {[%emt 0:04:59]} 12. Rfe1 {[%emt 0:08:07]} Nh5 {[%emt 0:03:30]} 13. Bh2 {[%emt 0:12:27]} e5 {[%emt 0:00:07]} 14. Bf1 {[%emt 0:09:00]} Qd8 {[%emt 0:05:01]} 15. a4 {[%emt 0:05:09]} a5 {[%emt 0:02:09]} 16. Nb5 {[%emt 0:10:14]} Qb8 {[%emt 0:00:09]} 17. Ra3 {[%emt 0:11:00]} Ba6 {[%emt 0:00:08]} 18. Rb3 {[%emt 0:03:27]} Bxb5 {[%emt 0:00:07]} 19. Rxb5 {[%emt 0:00:03]} Qd8 {[%emt 0:00:36]} 20. Kh1 {[%emt 0:06:09]} Nhf6 {[%emt 0:21:53]} 21. g4 {[%emt 0:02:54]} h5 {[%emt 0:00:47]} 22. g5 {[%emt 0:02:03]} Nh7 {[%emt 0:01:54]} 23. h4 {[%emt 0:01:43]} f5 {[%emt 0:03:36]} 24. Qd3 {[%emt 0:02:29]} f4 {[%emt 0:04:23]} 25. Bh3 {[%emt 0:00:03]} Rb8 {[%emt 0:00:20]} 26. Nd2 {[%emt 0:04:36]} Qe7 {[%emt 0:03:33]} 27. Be6+ {[%emt 0:02:09]} Kh8 {[%emt 0:00:08]} 28. Qh3 {[%emt 0:00:02]} Rfd8 {[%emt 0:00:27]} 29. Qb3 {[%emt 0:01:51]} Nhf8 {[%emt 0:00:23]} 30. Bh3 {[%emt 0:00:32]} Qe8 {[%emt 0:01:33]} 31. Nb1 {[%emt 0:01:50]} Kh7 {[%emt 0:04:01]} 32. Rg1 {[%emt 0:01:22]} Qe7 {[%emt 0:01:03]} 33. Qd1 {[%emt 0:01:51]} Rb7 {[%emt 0:01:16]} 34. Qb3 {[%emt 0:00:54]} Rbb8 {[%emt 0:00:52]} 35. Na3 {[%emt 0:01:55]} Ra8 {[%emt 0:03:41]} 36. Qd1 {[%emt 0:00:17]} Rab8 {[%emt 0:00:22]} 37. Rb3 {[%emt 0:01:19]} Rb7 {[%emt 0:00:09]} 38. Rg2 {[%emt 0:01:14]} Nb8 {[%emt 0:00:14]} 39. Nb5 {[%emt 0:01:43]} Na6 {[%emt 0:00:13]} 40. Qe2 {[%emt 0:00:41]} Nc7 {[%emt 0:00:43]} 41. Nc3 {[%emt 0:01:09]} Qf7 {[%emt 0:00:23]} 42. Rg1 {[%emt 0:05:34]} Kh8 {[%emt 0:01:34]} 43. Nd1 {[%emt 0:05:55]} Rbb8 {[%emt 0:00:10]} 44. Qf3 {[%emt 0:00:49]} Qe7 {[%emt 0:00:26]} 45. Nc3 {[%emt 0:09:07]} Na6 {[%emt 0:00:40]} 46. Qe2 {[%emt 0:03:29]} Nb4 {[%emt 0:00:18]} 47. Nb5 {[%emt 0:02:27]} Na6 {[%emt 0:01:22]} 48. Bg2 {[%emt 0:00:18]} Rb7 {[%emt 0:00:59]} 49. Bf3 {[%emt 0:01:40]} Kg8 {[%emt 0:01:00]} 50. Ra3 {[%emt 0:00:11]} Nc7 {[%emt 0:00:19]} 51. Nc3 {[%emt 0:00:34]} Kf7 {[%emt 0:00:56]} 52. Raa1 {[%emt 0:02:08]} Ke8 {[%emt 0:01:05]} 53. Bg2 {[%emt 0:00:46]} Qf7 {[%emt 0:00:21]} 54. Qd1 {[%emt 0:01:10]} Ke7 {[%emt 0:00:42]} 55. Bh3 {[%emt 0:00:53]} Re8 {[%emt 0:00:24]} 56. Re1 {[%emt 0:00:53]} Kd8 {[%emt 0:00:13]} 57. Qb3 {[%emt 0:00:51]} Nd7 {[%emt 0:00:43]} 58. Nb5 {[%emt 0:03:32]} Nxb5 {[%emt 0:00:53]} 59. Qxb5 {[%emt 0:00:02]} Qe7 {[%emt 0:02:07]} 60. Ra3 {[%emt 0:00:49]} Nb8 {[%emt 0:00:52]} 61. Rf3 {[%emt 0:02:16]} Qc7 {[%emt 0:00:55]} 62. Re2 {[%emt 0:05:06]} Re7 {[%emt 0:00:12]} 63. Rd3 {[%emt 0:04:09]} Nd7 {[%emt 0:00:19]} 64. Red2 {[%emt 0:02:06]} Ke8 {[%emt 0:00:55]} 65. Rb3 {[%emt 0:01:49]} Kf8 {[%emt 0:00:21]} 66. Be6 {[%emt 0:00:54]} Nb8 {[%emt 0:00:47]} 67. Rf3 {[%emt 0:00:19]} Rxe6 {[%emt 0:00:24]} 68. dxe6 {[%emt 0:00:14]} Nc6 {[%emt 0:00:28]} 69. Bxf4 {[%emt 0:04:20]} Kg8 {[%emt 0:01:25]} 70. Be3 {[%emt 0:00:22]} Bf8 {[%emt 0:01:38]} 71. Rf6 {[%emt 0:01:28]} Kg7 {[%emt 0:00:39]} 72. Rf7+ {[%emt 0:00:03]} 1-0

[Event "95th Caplin Hastings Congress"]
[Site "Hastings"]
[Date "2019.12.30"]
[Round "3.35"]
[White "Zheng, Jerry Z"]
[Black "Pekin, Tolgay"]
[Result "0-1"]
[ECO "B01"]
[WhiteElo "1565"]
[BlackElo "2080"]
[Annotator "NA"]
[PlyCount "120"]
[EventDate "2019.12.28"]
[EventType "swiss"]
[EventCountry "ENG"]
[SourceTitle "playchess.com"]
[Source "ChessBase"]
[SourceQuality "1"]
[TimeControl "40/6600+30:3000+30"]

1. e4 {[%emt 0:01:17]} d5 {[%emt 0:10:45]} 2. exd5 {[%emt 0:08:27]} Qxd5 {[%emt 0:00:14]} 3. Nc3 {[%emt 0:00:13]} Qd6 {[%emt 0:00:05]} 4. d4 {[%emt 0:01:08]} Nf6 {[%emt 0:00:14]} 5. Bc4 {[%emt 0:04:22]} Nc6 {[%emt 0:03:36]} 6. Be3 {[%emt 0:06:12]} e5 {[%emt 0:08:29]} 7. Nge2 {[%emt 0:27:30]} Bg4 {[%emt 0:17:19]} 8. f3 {[%emt 0:03:54]} Bf5 {[%emt 0:05:14]} 9. Qd2 {[%emt 0:15:28]} Qb4 {[%emt 0:41:35]} 10. Bb3 {[%emt 0:07:29]} O-O-O {[%emt 0:02:40]} 11. a3 {[%emt 0:08:35]} Qa5 {[%emt 0:03:54]} 12. d5 {[%emt 0:07:24]} Bc5 {[%emt 0:05:55]} 13. Bxc5 {[%emt 0:05:20]} Qxc5 {[%emt 0:00:05]} 14. O-O-O {[%emt 0:00:57]} Ne7 {[%emt 0:03:10]} 15. Ng3 {[%emt 0:05:30]} Bg6 {[%emt 0:01:11]} 16. Rhe1 {[%emt 0:00:34]} Nd7 {[%emt 0:01:02]} 17. Nge4 {[%emt 0:00:59]} Bxe4 {[%emt 0:01:47]} 18. Nxe4 {[%emt 0:00:02]} Qb6 {[%emt 0:01:19]} 19. Qc3 {[%emt 0:03:50]} Kb8 {[%emt 0:05:07]} 20. d6 {[%emt 0:05:39]} cxd6 {[%emt 0:02:43]} 21. Nxd6 {[%emt 0:00:56]} Nc5 {[%emt 0:00:11]} 22. Qxe5 {[%emt 0:02:05]} Nxb3+ {[%emt 0:01:08]} 23. cxb3 {[%emt 0:00:20]} Ng6 {[%emt 0:01:17]} 24. Qg3 {[%emt 0:01:51]} Ka8 {[%emt 0:00:04]} 25. Nxf7 {[%emt 0:00:48]} Qc5+ {[%emt 0:00:06]} 26. Kb1 {[%emt 0:00:21]} Qf5+ {[%emt 0:00:04]} 27. Ka2 {[%emt 0:00:24]} Qxf7 {[%emt 0:00:05]} 28. Qg5 {[%emt 0:01:04]} Rxd1 {[%emt 0:01:03]} 29. Rxd1 {[%emt 0:00:04]} Qe7 {[%emt 0:00:42]} 30. Qxe7 {[%emt 0:00:29]} Nxe7 {[%emt 0:00:07]} 31. Rd7 {[%emt 0:00:08]} Re8 {[%emt 0:00:04]} 32. b4 {[%emt 0:00:54]} Kb8 {[%emt 0:00:07]} 33. Kb3 {[%emt 0:00:09]} Kc8 {[%emt 0:00:19]} 34. Rd4 {[%emt 0:00:33]} Nc6 {[%emt 0:01:01]} 35. Rg4 {[%emt 0:00:12]} g6 {[%emt 0:00:37]} 36. b5 {[%emt 0:00:23]} Re3+ {[%emt 0:01:18]} 37. Ka4 {[%emt 0:01:08]} Ne5 {[%emt 0:00:44]} 38. Re4 {[%emt 0:00:20]} Rxe4+ {[%emt 0:00:14]} 39. fxe4 {[%emt 0:00:02]} Kd7 {[%emt 0:00:29]} 40. Kb4 {[%emt 0:00:43]} Ng4 {[%emt 0:00:54]} 41. Kc5 {[%emt 0:02:56]} Nxh2 {[%emt 0:01:06]} 42. b6 {[%emt 0:01:46]} a6 {[%emt 0:00:41]} 43. b4 {[%emt 0:00:31]} g5 {[%emt 0:03:09]} 44. a4 {[%emt 0:00:31]} g4 {[%emt 0:01:46]} 45. a5 {[%emt 0:01:55]} Nf3 {[%emt 0:06:43]} 46. b5 {[%emt 0:01:59]} Nd2 {[%emt 0:04:28]} 47. bxa6 {[%emt 0:03:51]} bxa6 {[%emt 0:02:25]} 48. e5 {[%emt 0:02:54]} Nb3+ {[%emt 0:06:09]} 49. Kb4 {[%emt 0:02:58]} Nd4 {[%emt 0:00:49]} 50. Kc5 {[%emt 0:02:21]} Ne6+ {[%emt 0:00:53]} 51. Kd5 {[%emt 0:00:33]} Nd8 {[%emt 0:00:24]} 52. e6+ {[%emt 0:10:36]} Ke7 {[%emt 0:00:12]} 53. Ke4 {[%emt 0:02:04]} Kxe6 {[%emt 0:02:12]} 54. Kf4 {[%emt 0:00:09]} Nb7 {[%emt 0:00:47]} 55. Kxg4 {[%emt 0:00:43]} Nxa5 {[%emt 0:00:18]} 56. Kh5 {[%emt 0:00:17]} Nb7 {[%emt 0:00:47]} 57. g4 {[%emt 0:00:59]} a5 {[%emt 0:00:35]} 58. Kh6 {[%emt 0:00:35]} a4 {[%emt 0:00:22]} 59. g5 {[%emt 0:00:26]} Kf5 {[%emt 0:00:08]} 60. Kxh7 {[%emt 0:02:40]} Kxg5 {[%emt 0:00:08]} 0-1

[Event "95th Caplin Hastings Congress"]
[Site "Hastings"]
[Date "2019.12.30"]
[Round "3.36"]
[White "Brouwer, Dennis"]
[Black "Thorpe, Thomas"]
[Result "1-0"]
[ECO "A85"]
[WhiteElo "2202"]
[BlackElo "1924"]
[Annotator "NA"]
[PlyCount "63"]
[EventDate "2019.12.28"]
[EventType "swiss"]
[EventCountry "ENG"]
[SourceTitle "playchess.com"]
[Source "ChessBase"]
[SourceQuality "1"]
[TimeControl "40/6600+30:3000+30"]

1. c4 {[%emt 0:09:33]} f5 {[%emt 0:09:45]} 2. Nc3 {[%emt 0:00:27]} Nf6 {[%emt 0:00:12]} 3. d4 {[%emt 0:00:13]} e6 {[%emt 0:00:14]} 4. Qc2 {[%emt 0:00:09]} Bb4 {[%emt 0:02:59]} 5. a3 {[%emt 0:04:08]} Bxc3+ {[%emt 0:00:16]} 6. Qxc3 {[%emt 0:00:10]} O-O {[%emt 0:01:36]} 7. g3 {[%emt 0:01:36]} d6 {[%emt 0:04:36]} 8. Bg2 {[%emt 0:00:50]} Nbd7 {[%emt 0:05:26]} 9. b4 {[%emt 0:14:35]} Qe7 {[%emt 0:13:45]} 10. Bb2 {[%emt 0:01:46]} c6 {[%emt 0:11:45]} 11. Nf3 {[%emt 0:07:57]} a5 {[%emt 0:07:19]} 12. O-O {[%emt 0:03:59]} Nb6 {[%emt 0:05:53]} 13. Qc2 {[%emt 0:02:41]} axb4 {[%emt 0:00:57]} 14. axb4 {[%emt 0:00:06]} Bd7 {[%emt 0:00:20]} 15. Nd2 {[%emt 0:08:59]} c5 {[%emt 0:13:23]} 16. dxc5 {[%emt 0:02:18]} dxc5 {[%emt 0:00:31]} 17. b5 {[%emt 0:01:10]} e5 {[%emt 0:04:57]} 18. Bxb7 {[%emt 0:06:05]} Rxa1 {[%emt 0:01:12]} 19. Rxa1 {[%emt 0:02:25]} Bxb5 {[%emt 0:02:29]} 20. cxb5 {[%emt 0:04:17]} Qxb7 {[%emt 0:00:07]} 21. Bxe5 {[%emt 0:08:02]} Qd5 {[%emt 0:02:35]} 22. Bc7 {[%emt 0:07:29]} Nfd7 {[%emt 0:02:58]} 23. Ra6 {[%emt 0:06:29]} Rf6 {[%emt 0:02:16]} 24. Nb1 {[%emt 0:05:59]} c4 {[%emt 0:03:53]} 25. Nc3 {[%emt 0:00:40]} Qc5 {[%emt 0:00:39]} 26. Bf4 {[%emt 0:03:58]} Qb4 {[%emt 0:04:30]} 27. Be3 {[%emt 0:01:32]} Rd6 {[%emt 0:05:00]} 28. Kg2 {[%emt 0:04:19]} g6 {[%emt 0:01:57]} 29. Ra1 {[%emt 0:02:41]} Nc5 {[%emt 0:01:49]} 30. Rb1 {[%emt 0:00:48]} Nb3 {[%emt 0:00:19]} 31. Bxb6 {[%emt 0:01:13]} Rxb6 {[%emt 0:00:02]} 32. Nd5 {[%emt 0:01:10]} 1-0

[Event "95th Caplin Hastings Congress"]
[Site "Hastings"]
[Date "2019.12.30"]
[Round "3.37"]
[White "Jukes, Sam"]
[Black "Makkar, Rajat"]
[Result "0-1"]
[ECO "C52"]
[WhiteElo "1906"]
[BlackElo "2137"]
[Annotator "NA"]
[PlyCount "74"]
[EventDate "2019.12.28"]
[EventType "swiss"]
[EventCountry "ENG"]
[SourceTitle "playchess.com"]
[Source "ChessBase"]
[SourceQuality "1"]
[TimeControl "40/6600+30:3000+30"]

1. e4 {[%emt 0:09:33]} e5 {[%emt 0:09:44]} 2. Nf3 {[%emt 0:00:05]} Nc6 {[%emt 0:00:31]} 3. Bc4 {[%emt 0:00:22]} Bc5 {[%emt 0:00:20]} 4. b4 {[%emt 0:00:26]} Bxb4 {[%emt 0:00:18]} 5. c3 {[%emt 0:00:07]} Ba5 {[%emt 0:00:20]} 6. d4 {[%emt 0:00:34]} Bb6 {[%emt 0:00:32]} 7. O-O {[%emt 0:06:14]} d6 {[%emt 0:03:31]} 8. dxe5 {[%emt 0:01:26]} dxe5 {[%emt 0:01:41]} 9. Qxd8+ {[%emt 0:05:10]} Nxd8 {[%emt 0:01:07]} 10. Nxe5 {[%emt 0:00:58]} Be6 {[%emt 0:01:39]} 11. Nd2 {[%emt 0:06:21]} Ba5 {[%emt 0:08:23]} 12. Bb2 {[%emt 0:01:35]} c6 {[%emt 0:07:55]} 13. Bb3 {[%emt 0:03:31]} Nf6 {[%emt 0:05:08]} 14. Rad1 {[%emt 0:07:49]} Bc7 {[%emt 0:02:46]} 15. Nd3 {[%emt 0:02:54]} O-O {[%emt 0:01:58]} 16. h3 {[%emt 0:03:28]} Re8 {[%emt 0:06:37]} 17. Rfe1 {[%emt 0:02:08]} b6 {[%emt 0:04:50]} 18. f4 {[%emt 0:05:39]} Nb7 {[%emt 0:15:13]} 19. e5 {[%emt 0:08:57]} Nd5 {[%emt 0:03:08]} 20. c4 {[%emt 0:07:49]} Ne7 {[%emt 0:01:25]} 21. Bc3 {[%emt 0:11:27]} a5 {[%emt 0:06:18]} 22. a4 {[%emt 0:08:50]} Rad8 {[%emt 0:01:13]} 23. Bc2 {[%emt 0:04:02]} h5 {[%emt 0:03:55]} 24. Nf2 {[%emt 0:02:27]} h4 {[%emt 0:02:30]} 25. Nfe4 {[%emt 0:04:50]} Nf5 {[%emt 0:00:50]} 26. Ng5 {[%emt 0:00:28]} Nd4 {[%emt 0:03:10]} 27. Bxd4 {[%emt 0:00:43]} Rxd4 {[%emt 0:00:30]} 28. Nxe6 {[%emt 0:02:13]} fxe6 {[%emt 0:00:39]} 29. Be4 {[%emt 0:02:52]} Red8 {[%emt 0:00:47]} 30. Re2 {[%emt 0:03:46]} Nc5 {[%emt 0:00:24]} 31. Bxc6 {[%emt 0:01:50]} Nb3 {[%emt 0:00:57]} 32. Nxb3 {[%emt 0:00:11]} Rxd1+ {[%emt 0:00:40]} 33. Kf2 {[%emt 0:00:13]} R1d3 {[%emt 0:01:17]} 34. Rb2 {[%emt 0:01:48]} Rc3 {[%emt 0:00:30]} 35. Bb5 {[%emt 0:00:55]} Rf8 {[%emt 0:00:27]} 36. Bd7 {[%emt 0:01:21]} Rxf4+ {[%emt 0:00:43]} 37. Ke2 {[%emt 0:00:15]} Kf7 {[%emt 0:00:37]} 0-1